bitfinex/quotes_ETHUSD_20250908
["timestamp","ask_amount","ask_price","bid_price","bid_amount"]
[1757321329247,4.24182359,4300.7,4300.6,0.3181]
[1757321329453,4.0242,4300.7,4300.6,0.3181]
[1757321330248,6.56702584,4300.7,4300.6,0.3181]
[1757321330420,4.24182297,4300.7,4300.6,0.3181]
[1757321330816,6.56702584,4300.7,4300.6,0.3181]
[1757321331219,6.56802584,4300.7,4300.6,0.3181]
[1757321332235,6.56816892,4300.7,4300.6,0.3181]
[1757321333237,4.24296605,4300.7,4300.6,0.3181]
[1757321333518,6.56816892,4300.7,4300.6,0.3181]
[1757321333722,4.24296605,4300.7,4300.6,0.3181]
[1757321333940,0.33396605,4300.7,4300.6,0.3181]
[1757321334137,6.56616892,4300.7,4300.6,0.3181]
[1757321334337,2.65916892,4300.7,4300.6,0.3181]
[1757321334537,6.34840287,4300.7,4300.6,0.3181]
[1757321334933,4.0232,4300.7,4300.6,0.3181]
[1757321336348,6.34840287,4300.7,4300.6,0.3181]
[1757321336739,6.34840287,4300.7,4300.6,0.002]
[1757321336943,6.65130287,4300.7,4300.6,0.002]
[1757321337140,9.50494441,4300.7,4300.6,0.002]
[1757321337329,9.85343723,4300.7,4300.6,0.002]
[1757321345568,8.94733723,4300.7,4300.6,0.002]
[1757321345942,7.48389569,4300.7,4300.6,0.3048]
[1757321346375,5.15869282,4300.7,4300.6,0.3048]
[1757321346536,5.04349282,4300.7,4300.6,0.3048]
[1757321346936,5.04349282,4300.7,4300.6,0.7687]
[1757321347371,7.36869569,4300.7,4300.6,0.3048]
[1757321347879,7.23800929,4300.7,4300.6,0.3048]
[1757321348061,7.36873708,4300.7,4300.6,0.3048]
[1757321348441,5.04353421,4300.7,4300.6,0.3048]
[1757321348672,0.34953421,4300.7,4300.6,0.3048]
[1757321348866,0.117,4300.7,4300.6,1.2314]
[1757321349068,4.018,4300.7,4300.6,1.2314]
[1757321349378,0.117,4300.7,4300.6,1.2314]
[1757321349574,0.117,4300.7,4300.6,1.58708152]
[1757321349575,3.902,4300.7,4300.6,1.58708152]
[1757321349757,3.902,4300.7,4300.6,3.91233846]
[1757321349954,0.001,4300.7,4300.6,11.28175885]
[1757321350161,3.902,4300.7,4300.6,3.91233846]
[1757321350345,0.001,4300.7,4300.6,3.91233846]
[1757321350546,0.001,4300.7,4300.6,4.02833846]
[1757321351284,0.001,4300.7,4300.6,3.56443846]
[1757321351466,0.001,4300.7,4300.6,11.39775885]
[1757321353569,0.0002,4300.7,4300.6,11.39775885]
[1757321353747,0.001,4301.2,4301.1,2.32498663]
[1757321353954,0.001,4301.2,4301.1,10.27541183]
[1757321354279,0.001,4301.2,4301.1,11.50481183]
[1757321354458,0.001,4301.2,4301.1,11.5979153]
[1757321358287,0.001,4301.2,4301.1,14.5979153]
[1757321358852,0.001,4301.6,4301.5,2.32477042]
[1757321359065,0.001,4301.6,4301.5,17.77515232]
[1757321359385,0.001,4301.6,4301.5,19.00455232]
[1757321359569,0.001,4301.6,4301.5,19.09764604]
[1757321363153,0.025,4302.8,4301.8,2.32457364]
[1757321363351,0.025,4302.8,4302.0,10.48542039]
[1757321363558,0.025,4302.8,4302.0,13.16944379]
[1757321363756,0.025,4302.8,4302.0,14.39164379]
[1757321363957,0.025,4302.8,4302.4,2.32428412]
[1757321364158,0.025,4302.8,4302.4,13.59170451]
[1757321364359,0.025,4302.8,4302.4,14.01130451]
[1757321364573,0.025,4302.8,4302.4,14.47630932]
[1757321365176,0.025,4302.8,4302.4,14.56938355]
[1757321366181,0.025,4302.8,4302.4,15.02378355]
[1757321366372,0.025,4302.8,4302.4,14.56938355]
[1757321366890,0.025,4302.8,4302.4,29.06938355]
[1757321367475,0.025,4302.8,4302.4,25.17138355]
[1757321367788,0.025,4302.8,4302.4,29.06838355]
[1757321368613,0.025,4302.8,4302.4,29.53258355]
[1757321368796,0.025,4302.8,4302.4,32.53258355]
[1757321369103,0.025,4302.8,4302.4,32.98698355]
[1757321371177,0.025,4302.8,4302.4,32.53258355]
[1757321373112,0.025,4302.8,4302.4,32.06838355]
[1757321374804,1.1928,4302.5,4302.4,20.49836316]
[1757321375011,0.001,4302.5,4302.4,20.49836316]
[1757321375376,0.001,4302.5,4302.4,10.19496316]
[1757321375800,1.1928,4302.5,4302.4,5.99836316]
[1757321375977,1.1928,4302.5,4302.4,9.42635835]
[1757321376176,0.762,4302.5,4302.4,5.53335835]
[1757321376498,0.001,4302.5,4302.4,9.42635835]
[1757321377593,0.303,4302.5,4302.4,9.42635835]
[1757321378624,0.0002,4302.5,4302.4,9.72995835]
[1757321378782,0.0002,4302.5,4302.4,11.25992467]
[1757321379113,0.0002,4302.5,4302.4,10.95632467]
[1757321379275,0.0002,4302.5,4302.4,11.25992467]
[1757321379473,0.0002,4302.5,4302.4,25.75992467]
[1757321380276,0.0002,4302.5,4302.4,25.45632467]
[1757321380725,0.733,4302.5,4302.4,25.45632467]
[1757321380908,1.192,4302.5,4302.4,0.20907423]
[1757321381112,1.192,4302.5,4302.4,2.53335835]
[1757321384311,1.192,4302.5,4302.4,8.37221255]
[1757321384811,0.0002,4302.5,4302.4,8.37221255]
[1757321385308,0.3022,4302.5,4302.4,8.37221255]
[1757321385814,1.192,4302.5,4302.4,8.37221255]
[1757321386417,1.192,4302.5,4302.4,0.20907423]
[1757321386712,1.3137,4302.5,4302.2,0.116]
[1757321386889,0.8898,4302.4,4302.2,0.116]
[1757321387313,0.761,4302.3,4302.2,0.116]
[1757321387490,0.761,4302.3,4302.2,5.9548542]
[1757321387677,1.1918,4302.3,4302.2,5.9548542]
[1757321388484,1.1918,4302.3,4302.2,0.116]
[1757321392887,0.025,4302.8,4302.7,2.32412206]
[1757321393087,0.025,4302.8,4302.7,8.46657626]
[1757321393319,0.025,4302.8,4302.7,8.55965157]
[1757321394192,0.025,4302.8,4302.7,8.25605157]
[1757321395088,0.3293,4302.8,4302.7,8.25605157]
[1757321395686,1.2355,4302.8,4302.7,0.09307531]
[1757321396792,2.32416875,4302.7,4302.0,5.8388542]
[1757321396991,1.36115,4302.8,4302.0,5.8388542]
[1757321396992,0.3043,4302.1,4302.0,5.8388542]
[1757321397194,1.2105,4302.1,4302.0,5.8388542]
[1757321397424,1.2105,4302.1,4302.0,6.53705714]
[1757321397801,1.2105,4302.1,4302.0,5.8388542]
[1757321401220,1.2105,4302.1,4302.0,0.002]
[1757321401619,3.5349462,4302.1,4302.0,0.002]
[1757321404035,3.5341462,4302.1,4302.0,0.002]
[1757321404749,3.896,4302.1,4302.0,5.8408542]
[1757321405598,1.786,4302.2,4302.0,5.8408542]
[1757321405822,1.786,4302.2,4302.1,0.3074]
[1757321406030,0.001,4302.5,4302.1,1.37162542]
[1757321406337,0.001,4302.5,4302.4,5.9548542]
[1757321406835,0.3053,4302.5,4302.4,5.9548542]
[1757321408247,0.3053,4302.5,4302.1,0.69817369]
[1757321408248,1.2115,4302.5,4302.1,0.69817369]
[1757321408430,1.2115,4302.5,4302.0,0.002]
[1757321408431,0.4599,4302.4,4302.0,0.118]
[1757321408730,0.9062,4302.4,4302.0,2.44248468]
[1757321408940,0.9062,4302.4,4302.2,5.8388542]
[1757321409103,0.3043,4302.3,4302.2,5.8388542]
[1757321410528,0.7506,4302.3,4302.2,5.8388542]
[1757321410903,1.2105,4302.3,4302.0,0.118]
[1757321411103,1.2105,4302.3,4302.0,0.002]
[1757321411104,0.9062,4302.2,4302.0,0.002]
[1757321411422,2.3244462,4302.1,4302.0,0.002]
[1757321411628,1.0222,4302.2,4302.0,0.002]
[1757321411854,0.3043,4302.1,4302.0,0.002]
[1757321412146,1.2105,4302.1,4302.0,0.002]
[1757321412599,0.001,4302.5,4302.0,0.3094]
[1757321412803,0.001,4302.5,4302.4,5.8388542]
[1757321413052,0.001,4302.5,4302.3,5.8388542]
[1757321413538,0.3043,4302.4,4302.2,0.116]
[1757321413743,0.9072,4302.5,4302.2,0.116]
[1757321413744,0.4609,4302.5,4302.2,0.116]
[1757321414230,0.001,4302.5,4302.2,0.116]
[1757321415636,0.001,4302.5,4302.1,6.2987542]
[1757321415637,0.3043,4302.3,4302.0,0.002]
[1757321415860,0.116,4302.4,4302.2,0.3074]
[1757321416529,0.116,4302.4,4302.1,5.8388542]
[1757321417318,0.116,4302.4,4302.2,5.8388542]
[1757321418048,2.44029166,4302.4,4302.2,5.8388542]
[1757321418211,2.44029166,4302.4,4302.0,0.002]
[1757321419225,0.116,4302.4,4302.0,0.002]
[1757321419552,0.116,4302.4,4302.1,5.8388542]
[1757321421129,0.001,4302.5,4302.3,0.3074]
[1757321421458,0.001,4302.5,4302.4,5.8388542]
[1757321422008,0.001,4302.5,4302.4,6.1462542]
[1757321426558,4.68686651,4303.0,4302.4,6.1462542]
[1757321426559,1.25299551,4304.4,4304.3,2.32325813]
[1757321426760,0.34836274,4304.7,4304.3,2.01832581]
[1757321427054,0.4931,4305.2,4304.5,5.8388542]
[1757321427258,0.4931,4305.2,4304.7,0.62329101]
[1757321427441,0.4931,4305.2,4304.7,7.01233326]
[1757321427645,0.4931,4305.2,4304.7,12.22789645]
[1757321427841,0.4931,4305.2,4304.7,12.8508231]
[1757321428040,0.965,4305.2,4304.7,9.00121257]
[1757321428269,0.965,4305.2,4304.7,13.06721257]
[1757321428455,0.965,4305.2,4304.7,7.22835837]
[1757321429054,0.965,4305.2,4304.7,7.22735837]
[1757321429421,0.0242,4304.8,4304.7,7.22735837]
[1757321432232,0.0242,4304.8,4304.7,7.75920259]
[1757321432831,0.0242,4304.8,4304.7,3.69420259]
[1757321433159,0.0242,4304.8,4304.7,7.7486801]
[1757321435033,0.0242,4304.8,4304.7,10.7486801]
[1757321436262,0.0252,4304.8,4304.7,10.7486801]
[1757321436765,0.0252,4304.8,4304.7,10.8646801]
[1757321436931,0.0252,4304.8,4304.7,10.86406748]
[1757321437559,0.001,4305.6,4304.8,5.32298829]
[1757321437758,0.001,4306.1,4305.7,2.32250272]
[1757321438084,0.001,4306.1,4305.7,9.72377837]
[1757321438262,0.001,4306.1,4305.7,9.79355898]
[1757321438981,0.001,4306.1,4305.7,9.92238953]
[1757321439160,0.001,4306.1,4305.7,9.79355898]
[1757321439369,0.001,4306.1,4305.7,10.3254032]
[1757321439576,0.001,4306.1,4305.7,10.45416473]
[1757321440997,0.4729,4306.5,4305.7,10.45416473]
[1757321440998,0.001,4306.5,4306.4,2.3221252]
[1757321441204,0.02,4306.9,4306.4,2.3221252]
[1757321441205,0.02,4306.9,4306.4,11.49393736]
[1757321441403,0.02,4306.9,4306.7,2.32196345]
[1757321441562,0.02,4306.9,4306.8,2.32190953]
[1757321441763,0.02,4306.9,4306.8,2.53696016]
[1757321442286,0.4719,4307.5,4307.4,2.32153677]
[1757321442489,1.2506,4307.5,4307.4,6.5775874]
[1757321442685,0.4931,4307.5,4307.4,6.5775874]
[1757321442886,0.4969,4307.8,4307.6,2.32144161]
[1757321443060,0.025,4307.8,4307.7,4.25705063]
[1757321443598,1.2756,4307.8,4307.7,4.25705063]
[1757321443756,1.2756,4307.8,4307.7,0.21505063]
[1757321443955,1.2756,4307.8,4307.7,4.25605063]
[1757321444158,1.2756,4307.8,4307.7,0.21505063]
[1757321445615,0.792,4307.7,4307.2,0.69733629]
[1757321445762,1.757,4307.7,4305.6,1.785]
[1757321445962,0.792,4307.5,4305.7,1.23740526]
[1757321446267,0.792,4307.5,4305.6,2.48253654]
[1757321446268,2.32204759,4306.6,4305.8,0.12840526]
[1757321446481,0.965,4307.4,4305.6,1.785]
[1757321446482,0.2856,4305.9,4305.6,1.785]
[1757321446659,0.965,4305.8,4305.7,4.04]
[1757321446859,1.2506,4305.8,4305.7,4.04]
[1757321447595,1.2506,4305.8,4305.6,1.785]
[1757321447815,0.965,4305.7,4305.5,4.038]
[1757321447984,2.32255986,4305.6,4305.3,4.65943465]
[1757321448168,0.2856,4305.4,4305.3,4.65943465]
[1757321448370,1.2506,4305.4,4305.3,4.65943465]
[1757321448570,4.04,4307.1,4305.3,4.65943465]
[1757321448571,0.965,4305.9,4305.3,5.53107812]
[1757321448798,0.4719,4305.9,4305.4,4.06122664]
[1757321448989,0.4719,4305.9,4305.4,6.3606495]
[1757321449507,0.4719,4305.8,4305.4,4.038]
[1757321450000,0.2856,4305.5,4305.3,4.65943465]
[1757321450774,0.965,4305.4,4305.3,4.65943465]
[1757321450969,1.2506,4305.4,4305.3,4.78820135]
[1757321451573,0.4719,4305.4,4305.3,4.78820135]
[1757321452372,0.4931,4305.8,4305.3,4.78820135]
[1757321452575,0.965,4305.7,4305.4,0.1287667]
[1757321452816,0.965,4305.6,4305.5,0.1287667]
[1757321453017,1.2506,4305.6,4305.5,0.1287667]
[1757321454008,2.32224381,4306.2,4305.5,0.2447667]
[1757321454009,0.4968,4306.0,4305.5,0.2447667]
[1757321454215,0.4635,4305.9,4305.6,0.1287667]
[1757321454383,0.4635,4305.9,4305.7,0.1287667]
[1757321454598,0.4635,4305.9,4305.8,0.1287667]
[1757321455106,0.7621,4305.9,4305.8,0.1287667]
[1757321455294,1.2599,4305.9,4305.8,0.1287667]
[1757321456620,0.001,4305.9,4305.8,0.1287667]
[1757321457025,0.001,4305.9,4305.8,10.76023702]
[1757321457229,0.001,4305.9,4305.8,10.25574737]
[1757321457413,0.001,4305.9,4305.8,11.08680206]
[1757321457613,0.001,4305.9,4305.8,11.30259976]
[1757321457815,0.001,4305.9,4305.8,10.68674507]
[1757321458527,0.001,4305.9,4305.8,10.55791847]
[1757321458714,0.001,4305.9,4305.8,10.68736102]
[1757321458918,0.001,4305.9,4305.8,6.44516102]
[1757321459230,0.001,4305.9,4305.8,11.93692349]
[1757321459522,0.001,4305.9,4305.8,11.93792349]
[1757321461009,0.001,4305.9,4305.8,10.68733267]
[1757321461921,0.001,4305.9,4305.8,10.68633267]
[1757321462536,0.001,4305.9,4305.8,10.47113267]
[1757321463404,0.001,4305.9,4305.8,10.49613267]
[1757321464235,0.001,4305.9,4305.8,10.48813267]
[1757321464424,1.2607,4305.9,4305.8,4.18113377]
[1757321464733,1.2607,4305.9,4305.8,7.36953267]
[1757321464934,1.2607,4305.9,4305.8,4.387152]
[1757321465538,1.2607,4305.9,4305.8,6.70960079]
[1757321466818,0.001,4305.9,4305.8,6.70960079]
[1757321467104,0.001,4305.9,4305.8,7.33280349]
[1757321467513,0.001,4305.9,4305.8,6.71120079]
[1757321468339,0.001,4305.9,4305.8,7.54009641]
[1757321468938,0.001,4305.9,4305.8,6.71120079]
[1757321469513,0.001,4305.9,4305.8,6.58175824]
[1757321470117,0.001,4305.9,4305.8,9.58175824]
[1757321470325,0.001,4305.9,4305.8,10.8246599]
[1757321470551,0.001,4306.3,4306.2,2.32223305]
[1757321470737,0.001,4306.3,4306.2,11.35616483]
[1757321470907,0.001,4306.3,4306.2,11.3345425]
[1757321471608,0.4968,4307.4,4306.5,2.32206838]
[1757321471840,0.4968,4307.4,4306.8,0.62165523]
[1757321472057,0.025,4307.8,4306.6,7.22670945]
[1757321472058,0.025,4307.8,4307.6,2.32143748]
[1757321472220,0.025,4307.8,4307.2,0.62165523]
[1757321472221,0.025,4307.8,4307.7,4.22584121]
[1757321472630,0.3244,4307.8,4307.7,6.54726563]
[1757321473007,1.2847,4307.8,4307.7,6.54726563]
[1757321473209,3.60607053,4307.8,4307.7,0.21584121]
[1757321473410,3.60607053,4307.8,4307.2,4.6294358]
[1757321473411,3.96867758,4307.8,4307.2,4.6294358]
[1757321473649,0.9613,4307.7,4307.0,4.008]
[1757321473848,0.2994,4307.1,4307.0,4.008]
[1757321474263,1.2597,4307.1,4307.0,4.008]
[1757321474481,0.4978,4307.7,4307.0,4.14881801]
[1757321474614,0.4635,4307.6,4307.3,0.62162612]
[1757321474813,0.4635,4307.5,4307.4,4.009]
[1757321475078,0.7629,4307.5,4307.4,4.009]
[1757321475361,1.2597,4307.5,4307.4,6.4465861]
[1757321475517,0.4635,4307.5,4307.4,6.4465861]
[1757321476166,0.7629,4307.5,4307.4,4.125]
[1757321476313,1.2597,4307.5,4307.4,4.125]
[1757321477856,1.2597,4307.5,4307.4,4.123]
[1757321478843,1.2597,4307.5,4307.4,0.116]
[1757321480371,1.2589,4307.5,4307.4,0.116]
[1757321480540,1.2589,4307.5,4307.4,4.117]
[1757321480741,1.2589,4307.5,4307.4,0.116]
[1757321484499,0.001,4307.7,4307.4,0.116]
[1757321485063,0.001,4307.7,4307.5,3.996]
[1757321485467,0.001,4307.7,4307.6,0.21584826]
[1757321488537,0.001,4307.7,4307.6,2.53732657]
[1757321488941,0.001,4307.7,4307.6,0.21584826]
[1757321489313,0.4714,4307.7,4307.6,0.21584826]
[1757321489513,0.7566,4307.7,4307.6,0.21584826]
[1757321490015,0.001,4307.7,4307.6,2.54022657]
[1757321490622,0.001,4307.7,4307.6,2.65622657]
[1757321491129,0.001,4307.7,4307.6,3.48510022]
[1757321491330,0.001,4307.7,4307.6,3.57805873]
[1757321492144,0.2862,4307.7,4307.6,3.57515873]
[1757321492315,1.2305,4307.7,4307.6,0.83754704]
[1757321492515,1.2305,4307.7,4307.6,0.21584826]
[1757321493816,1.2305,4307.7,4307.6,0.21588162]
[1757321495513,0.001,4307.7,4307.6,0.21588162]
[1757321495719,0.001,4307.7,4307.6,2.53735993]
[1757321495951,0.001,4307.7,4307.6,6.27798058]
[1757321496167,0.001,4307.7,4307.6,6.34482431]
[1757321496461,0.7566,4307.7,4307.6,4.29584013]
[1757321496666,0.7566,4307.7,4307.6,4.20288162]
[1757321497659,0.7566,4307.7,4307.6,5.03241786]
[1757321498756,1.2305,4307.7,4307.6,4.20288162]
[1757321499670,1.2305,4307.7,4307.6,0.21588162]
[1757321499882,1.2305,4307.7,4307.6,4.19888162]
[1757321500491,1.2305,4307.7,4307.6,5.02841786]
[1757321501609,3.67947442,4307.7,4307.6,0.57041786]
[1757321501787,2.3215861,4307.4,4307.3,0.002]
[1757321502154,3.5510861,4307.4,4307.3,0.002]
[1757321505889,3.5502861,4307.4,4307.3,0.002]
[1757321506056,3.6662861,4307.4,4307.3,0.002]
[1757321506256,4.67602081,4307.4,4307.3,0.002]
[1757321510174,5.46802081,4307.4,4307.3,0.002]
[1757321510580,5.46902081,4307.4,4307.3,0.002]
[1757321512603,9.44502081,4307.4,4307.3,0.002]
[1757321515220,12.6619442,4307.4,4307.3,0.002]
[1757321515520,12.80244371,4307.4,4307.3,0.002]
[1757321519979,3.11380171,4307.0,4306.9,1e-08]
[1757321520180,18.66733189,4307.0,4306.9,1e-08]
[1757321520379,20.06073182,4307.0,4306.9,1e-08]
[1757321523554,20.27742813,4307.0,4306.9,1e-08]
[1757321523698,26.86242813,4307.0,4306.9,1e-08]
[1757321523882,29.1303361,4307.0,4306.9,1e-08]
[1757321524081,28.91363979,4307.0,4306.9,1e-08]
[1757321524315,17.48189134,4307.0,4306.9,1e-08]
[1757321524624,21.44589134,4307.0,4306.9,1e-08]
[1757321524796,21.75809134,4307.0,4306.9,1e-08]
[1757321526078,22.69239134,4307.0,4306.9,1e-08]
[1757321528082,28.90963979,4307.0,4306.9,1e-08]
[1757321528298,29.12657655,4307.0,4306.9,1e-08]
[1757321529625,28.54229482,4307.0,4306.9,1e-08]
[1757321530320,28.54229482,4307.0,4306.8,0.002]
[1757321530321,2.32207128,4306.5,4305.8,0.025]
[1757321530539,2.32239485,4305.9,4305.8,0.025]
[1757321530830,6.28239485,4305.9,4305.8,0.025]
[1757321531031,9.28239485,4305.9,4305.8,0.3393]
[1757321531259,9.28159485,4305.9,4305.8,0.3393]
[1757321532150,10.38579485,4305.9,4305.8,0.025]
[1757321532308,19.67176146,4305.9,4305.8,0.025]
[1757321532713,19.88901232,4305.9,4305.8,0.025]
[1757321533256,19.88901232,4305.9,4305.8,1e-08]
[1757321534919,13.67176387,4305.9,4305.8,1e-08]
[1757321535352,13.45451301,4305.9,4305.8,1e-08]
[1757321535561,20.03951301,4305.9,4305.8,1e-08]
[1757321535862,20.25661956,4305.9,4305.8,1e-08]
[1757321545259,20.25661956,4305.9,4305.8,1e-08]
[1757321548043,20.25661956,4305.9,4305.8,0.00200001]
[1757321548248,20.25761956,4305.9,4305.8,0.00200001]
[1757321553173,19.79811956,4305.9,4305.8,0.00200001]
[1757321553335,20.23131956,4305.9,4305.8,0.00200001]
[1757321556783,20.23051956,4305.9,4305.8,0.00200001]
[1757321561993,3.11450272,4305.7,4305.6,1e-08]
[1757321562194,7.26460927,4305.7,4305.6,1e-08]
[1757321562357,8.56848394,4305.7,4305.6,1e-08]
[1757321562894,8.13528394,4305.7,4305.6,1e-08]
[1757321563262,8.56848394,4305.7,4305.6,1e-08]
[1757321563463,10.83639191,4305.7,4305.6,1e-08]
[1757321564481,0.792,4305.2,4305.1,1e-08]
[1757321564666,24.85212746,4305.2,4305.1,1e-08]
[1757321564867,6.11493433,4304.9,4304.8,1e-08]
[1757321565086,18.7511973,4304.9,4304.8,1e-08]
[1757321565284,19.0454973,4304.9,4304.8,1e-08]
[1757321565462,19.9658973,4304.9,4304.8,1e-08]
[1757321566088,20.14091833,4304.9,4304.8,1e-08]
[1757321567595,19.70771833,4304.9,4304.8,1e-08]
[1757321567796,8.77496988,4304.9,4304.8,1e-08]
[1757321567960,12.70896988,4304.9,4304.8,0.31540001]
[1757321568283,12.70896988,4304.9,4304.8,1e-08]
[1757321570394,13.92366988,4304.9,4304.8,1e-08]
[1757321571085,20.50866988,4304.9,4304.8,1e-08]
[1757321573204,20.50882268,4304.9,4304.8,1e-08]
[1757321575927,20.02162268,4304.9,4304.8,1e-08]
[1757321576304,19.29412268,4304.9,4304.8,0.30550001]
[1757321576534,19.29412268,4304.9,4304.8,0.75200001]
[1757321576535,12.12519368,4304.9,4304.8,0.75200001]
[1757321576721,16.05319368,4304.9,4304.8,1.18300001]
[1757321576905,15.83593433,4304.9,4304.8,1.18300001]
[1757321577306,16.62793433,4304.9,4304.8,1.18300001]
[1757321577714,16.62793433,4304.9,4304.8,0.30550001]
[1757321579916,16.62793433,4304.9,4304.8,1.18300001]
[1757321580121,15.83593433,4304.9,4304.8,1.18300001]
[1757321580313,16.62793433,4304.9,4304.8,1.18300001]
[1757321580513,13.62793433,4304.9,4304.8,1.18300001]
[1757321582245,13.62713433,4304.9,4304.8,1.18300001]
[1757321582460,12.83513433,4304.9,4304.8,1.18300001]
[1757321585961,12.83613433,4304.9,4304.8,1.18300001]
[1757321586343,12.83613433,4304.9,4304.8,0.75200001]
[1757321586862,6.25113433,4304.9,4304.8,0.75200001]
[1757321587364,6.25113433,4304.9,4304.8,0.30550001]
[1757321591281,3.929,4304.9,4304.8,0.30550001]
[1757321591560,3.928,4304.9,4304.8,1.39938146]
[1757321591758,6.25093433,4304.9,4304.8,1.39938146]
[1757321592273,6.25093433,4304.9,4304.8,0.52188146]
[1757321594277,6.25093433,4304.9,4304.8,0.52181899]
[1757321594797,6.25093433,4304.9,4304.8,0.21631899]
[1757321595076,7.30952444,4304.9,4304.8,0.21631899]
[1757321595843,6.25093433,4304.9,4304.8,0.21631899]
[1757321596876,6.25093433,4304.9,4304.8,0.21634468]
[1757321599475,6.54903433,4304.9,4304.8,0.21634468]
[1757321599645,6.25093433,4304.9,4304.8,0.21634468]
[1757321600764,6.25093433,4304.9,4304.8,0.52184468]
[1757321601167,6.25093433,4304.9,4304.8,0.21634468]
[1757321602168,2.32393433,4304.9,4304.8,0.21634468]
[1757321603348,2.32393433,4304.9,4304.8,0.21639868]
[1757321603561,6.25093433,4304.9,4304.8,0.21639868]
[1757321606183,6.4687597,4304.9,4304.8,0.21639868]
[1757321606594,6.4687597,4304.9,4304.8,0.51119868]
[1757321607274,6.4687597,4304.9,4304.8,0.21639868]
[1757321607470,6.4679597,4304.9,4304.8,0.21639868]
[1757321608180,6.46801988,4304.9,4304.8,0.21639868]
[1757321608586,6.46801988,4304.9,4304.8,0.51119868]
[1757321617498,6.78271988,4304.9,4304.8,0.21639868]
[1757321617797,12.40631855,4304.9,4304.8,0.21639868]
[1757321618291,12.40631855,4304.9,4304.8,1e-08]
[1757321618804,18.99131855,4304.9,4304.8,1e-08]
[1757321619098,2.32320416,4304.4,4304.3,0.002]
[1757321619306,3.12676278,4304.4,4304.3,0.002]
[1757321619471,6.44146278,4304.4,4304.3,0.002]
[1757321619672,7.32816278,4304.4,4304.3,0.002]
[1757321619876,8.12016278,4304.4,4304.3,0.002]
[1757321620075,7.90025813,4304.3,4304.2,1e-08]
[1757321620262,12.04314368,4304.3,4304.2,1e-08]
[1757321620581,6.11531211,4304.2,4304.1,1e-08]
[1757321620769,8.15998989,4304.2,4304.1,1e-08]
[1757321621103,9.36138989,4304.2,4304.1,1e-08]
[1757321622000,13.28738989,4304.2,4304.1,1e-08]
[1757321622203,13.28738989,4304.2,4304.1,0.00200001]
[1757321628215,6.11547405,4303.9,4303.8,1e-08]
[1757321628380,10.2593596,4303.9,4303.8,1e-08]
[1757321628707,12.21518514,4303.9,4303.8,1e-08]
[1757321629069,11.63172822,4303.9,4303.8,1e-08]
[1757321630669,11.63095591,4303.9,4303.8,1e-08]
[1757321630878,13.42023432,4303.9,4303.8,1e-08]
[1757321631880,19.25965446,4303.9,4303.8,1e-08]
[1757321633004,19.25885446,4303.9,4303.8,1e-08]
[1757321633206,12.98843432,4303.9,4303.8,1e-08]
[1757321633383,12.21803432,4303.9,4303.8,1e-08]
[1757321633796,12.94533432,4303.9,4303.8,1e-08]
[1757321633983,13.42083432,4303.9,4303.8,1e-08]
[1757321639306,12.21803432,4303.9,4303.8,1e-08]
[1757321640692,12.21803432,4303.9,4303.8,0.30070001]
[1757321640883,10.42875591,4303.9,4303.8,0.30070001]
[1757321641524,2.32347405,4303.9,4303.8,0.30070001]
[1757321641825,7.04047405,4303.9,4303.8,0.30070001]
[1757321641983,10.04047405,4303.9,4303.8,0.30070001]
[1757321642189,9.24847405,4303.9,4303.8,0.30070001]
[1757321642418,10.04047405,4303.9,4303.8,0.30070001]
[1757321645105,10.04047405,4303.9,4303.8,0.75780001]
[1757321645898,10.04047405,4303.9,4303.8,0.30070001]
[1757321647334,10.55554684,4303.9,4303.8,1e-08]
[1757321647634,12.74033668,4303.9,4303.8,1e-08]
[1757321648200,19.50071189,4303.9,4303.8,1e-08]
[1757321649241,25.34013203,4303.9,4303.8,1e-08]
[1757321657815,25.34113203,4303.9,4303.8,1e-08]
[1757321658360,27.78913203,4303.9,4303.8,1e-08]
[1757321658530,27.78833203,4303.9,4303.8,1e-08]
[1757321666345,3.69981025,4303.4,4303.3,0.002]
[1757321666547,16.21140347,4303.4,4303.3,0.002]
[1757321668064,6.11585201,4303.2,4303.1,1e-08]
[1757321668270,0.792,4302.9,4302.8,1e-08]
[1757321668604,18.59019487,4302.9,4302.8,1e-08]
[1757321668807,19.08979487,4302.9,4302.8,1e-08]
[1757321669104,19.52919487,4302.9,4302.8,1e-08]
[1757321669400,12.43927473,4302.9,4302.8,0.29650001]
[1757321669673,12.43927473,4302.9,4302.8,1e-08]
[1757321670167,19.02427473,4302.9,4302.8,1e-08]
[1757321670574,19.02427473,4302.9,4302.8,0.29650001]
[1757321671187,12.69967739,4302.9,4302.8,1.15730001]
[1757321671380,16.62267739,4302.9,4302.8,1.15730001]
[1757321671565,17.41467739,4302.9,4302.8,1.15730001]
[1757321671868,16.84160725,4302.9,4302.8,1.15730001]
[1757321672069,16.84160725,4302.9,4302.8,0.72630001]
[1757321672275,16.84160725,4302.9,4302.8,0.29650001]
[1757321672790,18.75816398,4302.9,4302.8,1e-08]
[1757321673152,18.75816398,4302.9,4302.8,0.29650001]
[1757321673347,19.56926398,4302.9,4302.8,1e-08]
[1757321673588,20.00866398,4302.9,4302.8,1e-08]
[1757321673900,20.00858195,4302.9,4302.8,1e-08]
[1757321675872,18.75808195,4302.9,4302.8,1e-08]
[1757321676278,19.06958195,4302.9,4302.8,1e-08]
[1757321676481,19.50898195,4302.9,4302.8,1e-08]
[1757321676785,20.00858195,4302.9,4302.8,1e-08]
[1757321677681,18.75808195,4302.9,4302.8,0.00200001]
[1757321678174,18.75908195,4302.9,4302.8,0.00200001]
[1757321679156,18.75908195,4302.9,4302.8,0.29850001]
[1757321679551,19.07058195,4302.9,4302.8,0.00200001]
[1757321679758,20.00958195,4302.9,4302.8,0.00200001]
[1757321684091,18.75828195,4302.9,4302.8,0.00200001]
[1757321684291,12.12672522,4302.9,4302.8,0.29850001]
[1757321684494,16.04772522,4302.9,4302.8,0.72830001]